{"text_format":"1","workbook":"xlsx","n_sheets":7,"sheets":["Single Budget Sheet","Multi Budget Sheet","Cost Share Budget","Sponsored Classes Index","For Equations","Catalyst Selection","Catalyst Selection2"],"not_rendered":{"charts":0,"images":0,"macros":1,"external_links":1,"defined_names":37,"comments":0,"pivot_tables":0},"unopened":[],"bounds":{"document_bytes":16777216,"sheet_cells":100000,"rows_first":2000,"rows_last":500,"rows_between":2000,"halvings":0,"cell_chars":16384,"cell_head_chars":4096},"cells_cut":0,"cells_raw":0,"read":"whole","date_system":"1900"}

{"sheet":"Single Budget Sheet","index":0,"n_rows":57,"n_cols":10,"rows_kept":57,"cut":false,"hidden":false,"merged":[[23,3,23,4],[24,3,24,4],[25,3,25,4],[26,3,26,4],[27,3,27,4],[23,0,23,1],[24,0,24,1],[25,0,25,1],[26,0,26,1],[27,0,27,1],[20,0,20,1],[21,0,21,1],[22,0,22,1],[12,7,14,9],[18,0,18,1],[18,3,18,4],[19,0,19,1],[19,3,19,4],[20,3,20,4],[21,3,21,4],[22,3,22,4],[30,3,30,4],[31,3,31,4],[32,3,32,4],[46,0,46,1],[39,0,39,1],[40,0,40,1],[41,0,41,1],[39,3,39,4],[40,3,40,4],[46,3,46,4],[55,3,55,4],[53,3,53,4],[49,3,49,4],[50,3,50,4],[47,3,47,4],[48,3,48,4],[54,3,54,4],[39,6,39,9],[40,6,40,9],[8,1,8,5],[30,0,30,1],[31,0,31,1],[32,0,32,1],[33,0,33,1],[28,3,28,4],[34,3,34,4],[35,3,35,4],[36,3,36,4],[33,3,33,4],[29,3,29,4],[28,0,28,1],[29,0,29,1],[38,0,38,1],[47,0,47,1],[48,0,48,1],[41,3,41,4],[44,0,44,5],[41,6,41,9],[45,3,45,5],[45,0,45,1],[42,3,42,4]]}
["A323 Streamlined Budget Form - Single Grant",null,null,null,null,"A323 Streamlined Revised 12/9/2016"]
[]
["Date Sent:",null,"SRS completes green fields and blue fields automatically populate"]
["Date Returned:",null,"Departments complete fields indicated in yellow as needed."]
["Data Entry Date:"]
[]
["Grant Number:",null,null,null,"F&A Rate:"]
["Grant Name:",null,null,null,null,null,null,"Departments:"]
["Grant Description:",null,null,null,null,null,null,"Please remember to check for Salary caps!"]
["Start Date:",null,null,null,null,null,null,"(DHHS, DOJ, etc.)"]
["End Date:",null,null,null,"Previous Budget:"]
["Coeus Number:",null,null,null,"This Action:"]
["PI Last Name:",null,null,null,"Cumulative Budget:",{"$f":"F11+F12","v":0},null,"Cumulative Budget must match GM Grant Value & Budgets in UC FLEX after your entry is posted."]
["Cost Center:"]
["Fund:",null,null,null,"Direct Budget:",{"$f":"D54","v":0}]
["Sp.Prog/Func. Area:",null,null,null,"F&A Budget:",{"$f":"D55","v":0}]
[]
["Select Sponsored Classes from dropdown list.  "]
["F&A Relevant Sponsored Classes",null,"Func Area","Grant Budget",null,"Comments (Such as GLs for Other Direct Expense & Workshops or helpful notes)",null,"For SRS GA Budget Screen:"]
[null,null,{"$f":"$B$16","v":0},null,null,null,null,"Funds Center","Func. Area","Distribution Key"]
[null,null,0,null,null,null,null,{"$f":"B14","v":0},{"$f":"B16","v":0},{"$f":"\"Z\"&IF('For Equations'!A2>6, 'For Equations'!A2-6, 'For Equations'!A2+6)","v":"Z7"}]
[null,null,0]
[null,null,0]
[null,null,0]
[null,null,0]
[null,null,0]
[null,null,0]
[null,null,0]
[null,null,0]
[null,null,0]
[null,null,0]
[null,null,0]
[null,null,0]
[null,null,0]
[null,null,"Direct Expense Budget / F&A Base:",{"$f":"SUM(D20:E34)","v":0}]
[null,null,"F&A Expense (enter amount for multiple F&A rates):  ",{"$f":"D35*F7","v":0}]
[null,null,"F&A EXPENSE 2 (rounding adjustment):  ",null,null,"(Older Grants = F&A EXPENSE-CUFS)"]
[]
["   F&A Exempt Sponsored Classes *"]
[null,null,{"$f":"$B$16","v":0},null,null,null,{"$f":"IF(A40=\"In State Tuit Frg\",\"Select Catalyst Action from dropdown in Cell F\"&ROW(),\"\")","v":""}]
[null,null,{"$f":"$B$16","v":0},null,null,null,""]
[null,null,{"$f":"$B$16","v":0},null,null,"",{"$f":"IF(A42=\"In State Tuit Frg\",\"Select Catalyst Action from dropdown in Cell F\"&ROW(),\"\")","v":""}]
[null,null,"Expense/Rev. Budget (Non-Scholarship):",{"$f":"SUM(D35:E37)+SUM(D40:D42)","v":0}]
[]
["Tuition, Stipends, Academic Travel Trainee only.  Enter In-State Tuition Fringe in the F&A Exempt section."]
["Sponsored Program: Scholarship/Fellow ",null,null,"Select Catalyst Option from Drop Down"]
["Tuition",null,7]
["Resident/Trainee Stipends",null,7]
["Travel-Trainee (Academic)",null,7]
[null,"F&A on Stipend/Travel (Rate or Amount):",null,{"$f":"IF($C$50<>0,($C$50*(D48+D49)),0)","v":0}]
[null,null,"Expense/Rev. Budget (Scholarship):",{"$f":"SUM(D47:D50)","v":0}]
[]
[null,null,null,null,null,"Document Numbers"]
[null,null,"TOTAL DIRECT EXPENSE BUDGET:  ",{"$f":"D35+SUM(D40:D42)+SUM(D47:E49)","v":0}]
[null,null,"F&A (INDIRECT COST) BUDGET:  ",{"$f":"D36+D37+D50","v":0}]
[null,null,"TOTAL GRANT EXPENSE BUDGET:  ",{"$f":"D54+D55","v":0}]
[null,"* Revenue budget equals expense budget for each Sponsored Program"]

{"sheet":"Multi Budget Sheet","index":1,"n_rows":59,"n_cols":17,"rows_kept":59,"cut":false,"hidden":false,"merged":[[46,11,46,12],[55,3,55,4],[39,3,39,4],[39,11,39,12],[47,3,47,4],[47,11,47,12],[56,3,56,4],[57,3,57,4],[54,3,54,4],[49,3,49,4],[50,3,50,4],[51,3,51,4],[42,0,42,1],[43,0,43,1],[43,3,43,4],[43,11,43,12],[44,0,44,1],[44,3,44,4],[44,11,44,12],[42,3,42,8],[45,0,45,1],[45,3,45,4],[45,11,45,12],[46,3,46,4],[32,3,32,4],[32,11,32,12],[33,3,33,4],[33,11,33,12],[41,0,41,12],[35,0,35,1],[36,0,36,1],[36,3,36,4],[36,11,36,12],[37,0,37,1],[37,3,37,4],[37,11,37,12],[38,0,38,1],[38,3,38,4],[38,11,38,12],[30,0,30,1],[30,3,30,4],[30,11,30,12],[31,3,31,4],[31,11,31,12],[35,3,35,8],[28,0,28,1],[28,3,28,4],[28,11,28,12],[29,0,29,1],[29,3,29,4],[29,11,29,12],[26,0,26,1],[26,3,26,4],[26,11,26,12],[27,0,27,1],[27,3,27,4],[27,11,27,12],[24,0,24,1],[24,3,24,4],[24,11,24,12],[25,0,25,1],[25,3,25,4],[25,11,25,12],[22,0,22,1],[22,3,22,4],[22,11,22,12],[23,0,23,1],[23,3,23,4],[23,11,23,12],[20,0,20,1],[20,3,20,4],[20,11,20,12],[8,1,8,5],[21,0,21,1],[21,3,21,4],[21,11,21,12],[18,3,18,4],[19,3,19,4],[17,3,17,4]]}
["A323 Streamlined Budget Form Multiple Grants",null,null,null,null,null,null,null,null,null,"*Insert",null,{"$f":"+'Single Budget Sheet'!F1","v":"A323 Streamlined Revised 12/9/2016"}]
[]
["Date Sent:",null,"SRS completes green fields and blue fields automatically populate"]
["Date Returned:",null,"Departments complete fields indicated in yellow as needed."]
["Data Entry Date:"]
[]
["Primary Grant Number:",null,null,null,"F&A Rate:",null,null,"Departments:"]
["Grant Name:",null,null,null,null,null,null,"Please remember to check for Salary caps!"]
["Grant Description:",null,null,null,null,null,null,"(DHHS, DOJ, etc.)"]
["Start Date:"]
["End Date:",null,null,null,"All Previous Budgets:",{"$f":"D56","v":0}]
["Coeus Number:",null,null,null,"This Action:",{"$f":"D57","v":0}]
["Primary PI Last Name:",null,null,null,"Cumulative All Budgets:",{"$f":"F11+F12","v":0}]
["Primary Cost Center:"]
["Fund:",null,null,null,"Direct Budget:",{"$f":"D50","v":0}]
["Sp.Prog/Func. Area:",null,null,null,"F&A Budget:",{"$f":"D51","v":0}]
[]
["Select Sponsored Classes from dropdown list.  ",null,null,"Grant Number",null,"10xxxxx","10xxxxx","10xxxxx","10xxxxx","10xxxxx"]
[null,null,null,"PI Last Name",null,{"$f":"IF(F18=$B7,$B13,\"\")","v":""},{"$f":"IF(G18=$B7,$B13,\"\")","v":""},{"$f":"IF(H18=$B7,$B13,\"\")","v":""},{"$f":"IF(I18=$B7,$B13,\"\")","v":""},{"$f":"IF(J18=$B7,$B13,\"\")","v":""}]
[null,null,null,"Cost Center",null,{"$f":"IF(F18=$B7,$B14,\"\")","v":""},{"$f":"IF(G18=$B7,$B14,\"\")","v":""},{"$f":"IF(H18=$B7,$B14,\"\")","v":""},{"$f":"IF(I18=$B7,$B14,\"\")","v":""},{"$f":"IF(J18=$B7,$B14,\"\")","v":""}]
["F&A Relevant Sponsored Classes",null,"Func Area","Total This Action",null,"Enter budgeted amounts by Sponsored Class and Grant number below",null,null,null,null,null,"Comments (Such as GLs for Other Direct Expense & Workshops or helpful notes)",null,null,"For SRS GA Budget Screen:"]
[null,null,{"$f":"$B$16","v":0},{"$f":"SUM(F22:K22)","v":0},null,null,null,null,null,null,null,null,null,null,"Funds Center","Func. Area","Distribution Key"]
[null,null,0,0,null,null,null,null,null,null,null,null,null,null,{"$f":"B14","v":0},{"$f":"B16","v":0},{"$f":"\"Z\"&IF('For Equations'!A3>6, 'For Equations'!A3-6, 'For Equations'!A3+6)","v":"Z7"}]
[null,null,0,0]
[null,null,0,0]
[null,null,0,0]
[null,null,0,0]
[null,null,0,0]
[null,null,0,0]
[null,null,0,0]
[null,null,0,0]
[null,null,"Direct Expense Budget / F&A Base:",{"$f":"SUM(D22:E31)","v":0},null,{"$f":"SUM(F22:F31)","v":0},{"$f":"SUM(G22:G31)","v":0},{"$f":"SUM(H22:H31)","v":0},{"$f":"SUM(I22:I31)","v":0},{"$f":"SUM(J22:J31)","v":0}]
[null,null,"F&A Expense (enter amount for multiple F&A rates):  ",{"$f":"D32*F7","v":0},null,{"$f":"F32*$F$7","v":0},{"$f":"G32*$F$7","v":0},{"$f":"H32*$F$7","v":0},{"$f":"I32*$F$7","v":0},{"$f":"J32*$F$7","v":0}]
[null,null,"F&A EXPENSE 2 (rounding adjustment):  ",{"$f":"SUM(F34:I34)","v":0},null,null,null,null,null,null,null,"(Older Grants = F&A EXPENSE-CUFS)"]
[]
["   F&A Exempt Sponsored Classes *",null,null,"Select Catalyst Option from Drop Down"]
[null,null,{"$f":"$B$16","v":0},{"$f":"SUM(F37:K37)","v":0}]
[null,null,{"$f":"$B$16","v":0},{"$f":"SUM(F38:K38)","v":0}]
[null,null,{"$f":"$B$16","v":0},{"$f":"SUM(F39:K39)","v":0}]
[null,null,"Expense/Rev. Budget (Non-Scholarship):",{"$f":"SUM(D32:E34)+SUM(D37:D39)","v":0}]
[]
["Tuition, Stipends, Academic Travel Trainee only.  Enter In-State Tuition Fringe in the F&A Exempt section."]
["Sponsored Program: Scholarship/Fellow ",null,null,"Select Catalyst Option from Drop Down"]
["Tuition",null,7,{"$f":"SUM(F44:K44)","v":0}]
["Resident/Trainee Stipends",null,7,{"$f":"SUM(F45:K45)","v":0}]
["Travel-Trainee (Academic)",null,7,{"$f":"SUM(F46:K46)","v":0}]
[null,"F&A on Stipend/Travel (Rate or Amount):",{"$f":"F7","v":0},{"$f":"SUM(F47:I47)","v":0},null,{"$f":"IF($C$47<>0,($C$47*(F44+F45+F46)),0)","v":0},{"$f":"IF($C$47<>0,($C$47*(G44+G45+G46)),0)","v":0},0,0,{"$f":"IF($C$47<>0,($C$47*(J44+J45+J46)),0)","v":0}]
[null,null,"Expense/Rev. Budget (Scholarship):",{"$f":"SUM(D44:D47)","v":0},null,{"$f":"SUM(F44:F47)","v":0},{"$f":"SUM(G44:G47)","v":0},0,0,{"$f":"SUM(J44:J47)","v":0}]
[]
[null,null,"TOTAL DIRECT EXPENSE BUDGET:  ",{"$f":"D32+SUM(D37:D39)+SUM(D44:E46)","v":0},null,{"$f":"F32+SUM(F37:F39)+SUM(F44:G46)","v":0},{"$f":"G32+SUM(G37:G39)+SUM(G44:H46)","v":0},{"$f":"H32+SUM(H37:H39)+SUM(H44:I46)","v":0},{"$f":"I32+SUM(I37:I39)+SUM(I44:I46)","v":0},{"$f":"J32+SUM(J37:J39)+SUM(J44:M46)","v":0}]
[null,null,"F&A (INDIRECT COST) BUDGET:  ",{"$f":"D33+D34+D47","v":0},null,{"$f":"F33+F34+F47","v":0},{"$f":"G33+G34+G47","v":0},{"$f":"H33+H34+H47","v":0},{"$f":"I33+I34+I47","v":0},{"$f":"J33+J34+J47","v":0}]
[null,null,"TOTAL GRANT EXPENSE BUDGET:  ",{"$f":"D50+D51","v":0},null,{"$f":"F50+F51","v":0},{"$f":"G50+G51","v":0},0,0,{"$f":"J50+J51","v":0}]
[null,null,null,"Document Numbers:"]
[null,"* Revenue budget equals expense budget for each Sponsored Program"]
[null,null,null,"Cumulative Award Amt",null,{"$f":"F18","v":"10xxxxx"},{"$f":"G18","v":"10xxxxx"},{"$f":"H18","v":"10xxxxx"},{"$f":"I18","v":"10xxxxx"},{"$f":"J18","v":"10xxxxx"}]
["BUDGET CHECK",null,"Previous Budget in Flex:",{"$f":"SUM(F56:I56)","v":0}]
[null,null,"Additional Budget This Action:",{"$f":"SUM(F57:I57)","v":0},null,{"$f":"F52","v":0},{"$f":"G52","v":0},{"$f":"H52","v":0},{"$f":"I52","v":0},{"$f":"J52","v":0}]
[null,null,"Cumulative Budget Should Be:",{"$f":"SUM(F58:I58)","v":0},null,{"$f":"F56+F57","v":0},{"$f":"G56+G57","v":0},0,0,{"$f":"J56+J57","v":0}]
[null,null,null,"Cumulative Budget must match to GM Grant Value & Budgets in UC FLEX after your entry is posted."]

{"sheet":"Cost Share Budget","index":2,"n_rows":44,"n_cols":12,"rows_kept":44,"cut":false,"hidden":false,"merged":[[17,2,17,3],[17,5,17,6],[18,2,18,3],[18,5,18,6],[19,2,19,3],[19,5,19,6],[20,2,20,3],[20,5,20,6],[21,2,21,3],[21,5,21,6],[24,2,24,3],[24,5,24,6],[22,2,22,3],[22,5,22,6],[23,5,23,6],[23,2,23,3],[25,5,25,6],[27,2,27,3],[28,2,28,3],[28,5,28,6],[43,5,43,6],[36,2,36,3],[36,5,36,6],[37,2,37,3],[37,5,37,6],[38,5,38,6],[40,5,40,6],[41,5,41,6],[42,5,42,6],[35,2,35,3],[35,5,35,6],[33,0,33,6],[34,5,34,7],[27,5,27,7],[29,2,29,3],[29,5,29,6],[31,5,31,6],[30,2,30,3],[30,5,30,6]]}
["A323 Stream Lined Cost Share Budget Form",null,null,null,null,null,null,{"$f":"+'Single Budget Sheet'!F1","v":"A323 Streamlined Revised 12/9/2016"}]
[]
["Date Sent:",null,"SRS completes green fields and blue fields automatically populate"]
["Date Returned:",null,"Departments complete fields indicated in yellow as needed."]
["Data Entry Date:"]
[]
["Grant Number:",{"$f":"+'Single Budget Sheet'!B7","v":0},null,null,null,null,"Start Date:",{"$f":"+'Single Budget Sheet'!B10","v":"00:00:00"}]
["Grant Name:",{"$f":"+'Single Budget Sheet'!B8","v":0},null,null,null,null,"End Date:",{"$f":"+'Single Budget Sheet'!B11","v":"00:00:00"}]
["Coeus Number:",{"$f":"+'Single Budget Sheet'!B12","v":0},null,null,null,null,"Grant Fund:",{"$f":"+'Single Budget Sheet'!B15","v":0}]
["PI Last Name:",{"$f":"+'Single Budget Sheet'!B13","v":0},null,null,null,null,"F&A Rate:",0]
["Grant Cost Center:",{"$f":"+'Single Budget Sheet'!B14","v":0},null,null,null,"Sp.Prog/Func. Area:",null,{"$f":"+'Single Budget Sheet'!B16","v":0}]
[]
[null,"Previous Budget","Additional Budget","Cumulative Budget",null,"Complete sections below if you would like to"]
["C/S Mandatory:",null,null,{"$f":"+B14+C14","v":0},null,"budget cost share.  Otherwise only the Cost"]
["C/S Non Reportable:",0,null,{"$f":"+B15+C15","v":0},null,"Share Tab in Grant Master will be updated."]
[]
[null,null,"Select Sponsored Classes from dropdown list.  "]
["Fund","Cost Center","F&A Relevant Sponsored Classes",null,"Func Area","C/S Budget",null,"Comments (Such as GLs for Other Direct Expense & Workshops or helpful notes)",null,"For GA Budget Screen:"]
[null,null,null,null,{"$f":"+$H$11","v":0},null,null,null,null,"Funds Center","Func. Area","Distribution Key"]
[null,null,null,null,0,null,null,null,null,{"$f":"'Single Budget Sheet'!H21","v":0},{"$f":"'Single Budget Sheet'!I21","v":0},{"$f":"\"Z\"&IF('For Equations'!A4>6, 'For Equations'!A4-6, 'For Equations'!A4+6)","v":"Z7"}]
[null,null,null,null,0]
[null,null,null,null,0]
[null,null,null,null,0]
[null,null,null,null,0]
[null,null,null,null,0]
[null,null,null,null,"Total:",{"$f":"SUM(F19:G25)","v":0}]
[]
["Fund","Cost Center","F&A Exempt Sponsored Classes",null,null,"Select Catalyst Option from Drop Down"]
[null,null,null,null,{"$f":"+$H$11","v":0}]
[null,null,null,null,{"$f":"+$H$11","v":0}]
[null,null,null,null,{"$f":"+$H$11","v":0}]
[null,null,null,null,"Total:",{"$f":"SUM(F25:G31)","v":0}]
[]
["Tuition, Stipends, Academic Travel Trainee only.  Enter In-State Tuition Fringe in the F&A Exempt section.",null,null,null,null,null,null,null,null,"Budget Cost Share for the following Sponsored Classes here:"]
["Fund","Cost Center","Sponsored Program: Scholarship/Fellow ",null,null,"Select Catalyst Option from Drop Down",null,null,null,"550110 Book Scholarship[p TUITION"]
[null,null,"Tuition",null,7,null,null,null,null,"550100 Scholarships TUITION"]
[null,null,"Resident/Trainee Stipends",null,7,null,null,null,null,"550110 Book Scholarship[p TUITION"]
[null,null,"Travel-Trainee (Academic)",null,7,null,null,null,null,"550200 Scholarships University Dean (UGS) TUITION"]
[null,null,null,null,"Total:",{"$f":"SUM(F30:G38)","v":0},null,null,null,"550201 Scholarships Grad Asst Out of State Credit TUITION"]
[null,null,null,null,null,null,null,"Document Numbers"]
[null,null,null,null,"Cost Share - Direct Expense Budget:",{"$f":"F26+SUM(F29:F31)+SUM(F36:G38)","v":0}]
[null,null,null,null,"F&A on Direct C/S Budget (not entered in SAP):",{"$f":"(F26+F37+F38)*H10","v":0}]
[null,null,null,null,"Cost Share: Total Expense Budget:",{"$f":"F41+F42","v":0}]
[null,null,null,null,"Revenue-Cost Sharing Budget:",{"$f":"F41","v":0}]

{"sheet":"Sponsored Classes Index","index":3,"n_rows":67,"n_cols":2,"rows_kept":67,"cut":false,"hidden":true,"merged":[]}
["F&A RELEVANT CLASSES"]
[]
["[SALARY & FRINGE CLASSES]","Salary and fringe classes are set up for the full range of grants, with the exception of 1199, AFSCME and ONA salaries which"]
["AAUP Other Comp","require specific justification.  Administrative or clerical salaries are only allowed on major projects such as clinical research"]
["Acad Full Time Sal","centers or grants that require extensive data entry, making travel arrangements for a large number of participants, creating "]
["Acad Part Time Sal","manuals or working in a location inaccessible to normal departmental administrative services.  Refer to A-21 for more detailed"]
["Fringe Benefits","information about administrative and/or clerical costs."]
["Frng Bene Non Auto"]
["Graduate Assistants"]
["Intern Salaries"]
["Post Doctoral Fellow"]
["Student Wages Hourly"]
["Unrep Adm & Supp Sal"]
["Work Study Student"]
[]
["[REQUIRE SPECIFIC JUSTIFICATION]"]
["1199 Salaries"]
["AFSCME Salaries"]
["ONA Salaries"]
[]
["[NON-SALARY CLASSES]"]
["Advertisg & Develpmt"]
["Consultants"]
["Educational Material"]
["Equipment < 5000"]
["Internal Recharges"]
["Lab Animal Medicine"]
["Lab Expense"]
["Non UC Assets < 5000"]
["Postage & Delivery"]
["Programming Services"]
["Publications"]
["Radiatn Sfty-Flm Bdg"]
["Radiatn Sfty-Wste"]
["Subcon-Idc Relevant"]
["Subject Incentives"]
["Travel"]
["Travel-Foreign"]
["Travel-Trainee (Non-Academic)"]
[]
["[REQUIRE SPECIFIC JUSTIFICATION]"]
["Alteratn/Renovatn"]
["Computer Cons Svcs"]
["Honorarium"]
["Other Direct Expense"]
["Prescriptions"]
["Utilities"]
["Workshops"]
[]
["[F&A EXEMPT CLASSES]"]
["Budgeted Reserve (For Budgeting Only)"]
["Communications"]
["Equipment 5000+"]
["Grnt-Restricted G100 (For Budgeting Only)"]
["In State Tuit Frg"]
["Non UC Assets 5000+"]
["Patient Care"]
["Subcon-Not IDC Rlvnt"]
[]
["[REQUIRE SPECIFIC JUSTIFICATION-F&A Exempt]"]
["Offce & Classrm Rent"]
["UCIT UCNET Usage"]
[]
["[CLASSES THAT USE FUNC. AREA 7 - SCHOLARSHIP/FELLOWSHIP]"]
["Resdnt/Trnee Stipend"]
["Tuition"]
["Travel-Trainee (Academic)"]

{"sheet":"For Equations","index":4,"n_rows":4,"n_cols":1,"rows_kept":4,"cut":false,"hidden":true,"merged":[]}
["For Equations:"]
[{"$f":"MONTH('Single Budget Sheet'!B5)","v":1}]
[{"$f":"MONTH('Multi Budget Sheet'!B5)","v":1}]
[{"$f":"MONTH('Cost Share Budget'!B5)","v":1}]

{"sheet":"Catalyst Selection","index":5,"n_rows":3,"n_cols":1,"rows_kept":3,"cut":false,"hidden":true,"merged":[]}
["Select Catalyst Option from Drop Down"]
["Extension Only: SRS GA - e-mail D. Provine to request extension"]
["New Item Type(s) Needed - Please Send Item Type Catalyst Form"]

{"sheet":"Catalyst Selection2","index":6,"n_rows":2,"n_cols":1,"rows_kept":2,"cut":false,"hidden":true,"merged":[]}
["Extension Only: SRS GA - e-mail D. Provine to request extension"]
["New Item Type(s) Needed - Please Send Item Type Catalyst Form"]